Cogmind - Beta 13 @@@ ROGUE MODE // 2024.04.17 @ 16:27:12 Player: Person Guy Result: Destroyed by YI-UF0 with YI-UF0's Doublenader Performance ------------- Evolutions (0) 0 Regions Visited (4) 800 Robots Destroyed (18) 90 Value Destroyed (596) 596 Prototype IDs (3) 60 Alien Tech Used (0) 0 Bonus (300) 300 TOTAL SCORE: 1846 Bonus ------- Aligned with FarCom 300 Cogmind --------- Core Integrity 0/250 Matter 296/300 Energy 250/250 System Corruption 0% Temperature Cool (0) Movement Walking (120) Location -9/Mines Parts ------- > --- POWER (1) -------- Ion Engine > --- PROPULSION (2) --- Aluminum Leg Aluminum Leg > --- UTILITY (2) ------ Improved Heat Sink Small Storage Unit > --- WEAPON (2) ------- Small Laser > --- INVENTORY (8) ---- Light Nuclear Core Potential Leg Potential Leg Improved Heat Sink Hacking Suite Hacking Suite Small Laser Rocket Launcher Peak State ------------ > --- POWER ------------ Ion Engine > --- PROPULSION ------- Potential Leg Potential Leg > --- UTILITY ---------- Small Storage Unit > --- WEAPON ----------- Small Laser Assault Rifle > --- INVENTORY -------- Light Nuclear Core Improved Heat Sink Improved Heat Sink Hacking Suite Hacking Suite Small Laser [Rating: 25] Favorites ----------- Power Ion Engine Engine Ion Engine Propulsion Aluminum Leg Treads Light Treads Leg Aluminum Leg Utility Small Storage Unit Device Improved Heat Sink Storage Small Storage Unit Weapon Assault Rifle Energy Gun Small Laser Ballistic Gun Assault Rifle Build | -11 -10 -10 -10 -9 ------- Run | Yrd Mat Min Exi Min Slots Evolved . | . . . . . Power . | . . . . . Propulsion . | . . . . . Utility . | . . . . . Weapon . | . . . . . Parts Attached 16 | 6 4 . 5 1 Power 2 | 1 1 . . . Engine 2 | 1 1 . . . Core . | . . . . . Reactor . | . . . . . Propulsion 8 | 2 1 . 5 . Treads 3 | 2 1 . . . Leg 5 | . . . 5 . Wheel . | . . . . . Hover . | . . . . . Flight . | . . . . . Utility 2 | 1 . . . 1 Device 1 | . . . . 1 Storage 1 | 1 . . . . Processor . | . . . . . Hackware . | . . . . . Protection . | . . . . . Artifact . | . . . . . Weapon 4 | 2 2 . . . Energy Gun 1 | . 1 . . . Energy Cannon . | . . . . . Ballistic Gun 3 | 2 1 . . . Ballistic Cannon . | . . . . . Launcher . | . . . . . Special Weapon . | . . . . . Impact Weapon . | . . . . . Slashing Weapon . | . . . . . Piercing Weapon . | . . . . . Special Melee Weapon . | . . . . . Unidentified Prototypes 1 | . . . 1 . Parts Lost 2 | . 1 . . 1 Power . | . . . . . Propulsion . | . . . . . Utility . | . . . . . Weapon 2 | . 1 . . 1 Highest Loss Streak 1 | . 1 . . 1 To Critical Strikes . | . . . . . Average Slot Usage (%) 92 | . 84 85 83 99 Engine 14 | . 14 14 14 14 Treads 11 | . 28 28 15 . Leg 16 | . . . 10 28 Device 7 | . . . . 13 Storage 14 | . 14 14 14 14 Energy Gun 12 | . 8 14 14 14 Ballistic Gun 15 | . 19 14 14 14 Naked Turns . | . . . . . Heaviest Build 14 | 13 13 13 13 14 Greatest Support 60 | 40 40 40 60 20 Greatest Overweight (x) 4 | . . . 4 . Average Overweight (x) . | . . . . . Largest Inventory Capacity 8 | 8 8 8 8 8 Average Capacity 7 | 6 8 8 8 8 Most Carried 8 | 4 8 8 8 8 Average Carried 7 | 1 5 7 7 7 Final Capacity 8 | 8 8 8 8 8 Final Carried 8 | 3 7 8 8 8 Class Distribution -------------------- 100% | Mutant Dominant Class ---------------- Mutant | -10/Materials Mutant | -10/Mines Mutant | -10/Exiles Mutant | -9/Mines Resources | -11 -10 -10 -10 -9 ----------- Run | Yrd Mat Min Exi Min Matter Collected 619 | 214 303 42 50 10 Remotely . | . . . . . Salvage Created 745 | . 524 221 . . Parts 39 | . 26 13 . . Haulers Intercepted 1 | . 1 . . . Recyclers Shooed . | . . . . . Parts Field Recycled . | . . . . . Retrieved Matter . | . . . . . Parts Self-Destructed . | . . . . . Prevented . | . . . . . Kills | -11 -10 -10 -10 -9 ------- Run | Yrd Mat Min Exi Min Combat Hostiles Destroyed 15 | . 10 5 . . Guns 15 | . 10 5 . . Classes Destroyed 3 | . 3 . . . Hauler 1 | . 1 . . . Operator 2 | . 2 . . . Grunt 15 | . 10 5 . . Best Kill Streak 4 | . 4 3 . . Combat Bots Only 4 | . 4 3 . . Max Kills in Single Turn 2 | . 1 2 . . Gunslinging 1 | . . 1 . . Exploded . | . . . . . Melee . | . . . . . Uniques/NPCs Destroyed . | . . . . . Combat | -11 -10 -10 -10 -9 -------- Run | Yrd Mat Min Exi Min Hostile Shots Fired 96 | . 60 22 . 14 Missed 25 | . 15 6 . 4 Damage Taken 1171 | . 545 237 . 389 Core 288 | . 114 65 . 109 Absorbed by Shields . | . . . . . Core Remaining (%) 100 | 100 . . . . Volleys Fired 81 | . 63 14 . 4 Largest 2 | . 2 2 . 2 Hottest 60 | . 60 60 . 60 Shots Fired 157 | . 122 28 . 7 Gun 157 | . 122 28 . 7 Cannon . | . . . . . Launcher . | . . . . . Special . | . . . . . Kinetic 117 | . 100 14 . 3 Thermal 40 | . 22 14 . 4 Explosive . | . . . . . Electromagnetic . | . . . . . Robot Hit Streak 13 | . 13 7 . 7 Robot Miss Streak 3 | . 3 2 . 1 Penetration Max . | . . . . . Secondary Targets 1 | . . 1 . . Max Gunslinging Chain 1 | . . 1 . . Shots Hit Robots 104 | . 78 20 . 6 Core Hits 41 | . 30 8 . 3 Critical Kills 2 | . . 2 . . Critical Parts Destroyed . | . . . . . Critical Strikes 2 | . . 2 . . Destroy 2 | . . 2 . . Melee Attacks . | . . . . . Impact . | . . . . . Slashing . | . . . . . Piercing . | . . . . . Sneak Attacks . | . . . . . Combat Hostiles . | . . . . . Follow-up Attacks . | . . . . . Damage Inflicted 1208 | . 890 234 . 84 Guns 1183 | . 878 234 . 71 Cannons . | . . . . . Explosions . | . . . . . Melee . | . . . . . Ramming 25 | . 12 . . 13 Kinetic 863 | . 707 117 . 39 Thermal 320 | . 171 117 . 32 Explosive . | . . . . . Electromagnetic . | . . . . . Impact . | . . . . . Slashing . | . . . . . Piercing . | . . . . . Highest Corruption . | . . . . . Average Corruption . | . . . . . Corruption Purged . | . . . . . Corruption Blocked . | . . . . . Overload Shots . | . . . . . Overflow Damage . | . . . . . Projectiles . | . . . . . Explosions . | . . . . . Melee . | . . . . . Knockbacks . | . . . . . Impact . | . . . . . Kinetic . | . . . . . Secondary . | . . . . . Self-Inflicted Damage . | . . . . . Shots . | . . . . . Rammed 3 | . 3 . . . Targets Rammed 5 | . 3 . . 2 Kicked 2 | . . . . 2 Crushed . | . . . . . Highest Temperature 90 | . 45 90 . . Average Temperature 26 | . 11 48 . . Received Heat Transfer 450 | . 297 153 . . Siege Activations . | . . . . . Robots Corrupted . | . . . . . Combat Hostiles . | . . . . . Parts Fried . | . . . . . Impact Corruptions . | . . . . . Robots Melted . | . . . . . Combat Hostiles . | . . . . . Parts Melted 1 | . . 1 . . Heat Transferred 725 | . 375 275 . 75 Parts Sabotaged . | . . . . . Parts Stolen . | . . . . . Parts Stripped . | . . . . . Power Chain Reactions . | . . . . . Alert | -11 -10 -10 -10 -9 ------- Run | Yrd Mat Min Exi Min Peak Influence 194 | . 176 194 . . Initial 59 | . . 59 . . Average 38 | . 94 152 . . Maximum Alert Level . | . . . . . Low Security (%) 100 | 100 100 100 . 100 Level 1 . | . . . . . Level 2 . | . . . . . Level 3 . | . . . . . Level 4 . | . . . . . Level 5 . | . . . . . High Security . | . . . . . Max Security . | . . . . . Squads Dispatched 3 | . 3 . . . Investigation 1 | . 1 . . . Extermination . | . . . . . Reinforcement 2 | . 2 . . . Assault . | . . . . . Garrison . | . . . . . Intercept . | . . . . . Searches Triggered . | . . . . . Construction Impeded . | . . . . . Haulers Reinforced . | . . . . . Active Scanning Responses . | . . . . . Cargo Convoy Interrupts . | . . . . . Stealth | -11 -10 -10 -10 -9 --------- Run | Yrd Mat Min Exi Min Distress Signals 2 | . 1 . . 1 Communications Jammed . | . . . . . Distress Signals . | . . . . . Times Spotted 29 | . 22 6 . 1 Peak Tracking Total 3 | . 3 3 . 1 Tactical Retreats 2 | . 1 1 . . Traps | -11 -10 -10 -10 -9 ------- Run | Yrd Mat Min Exi Min Traps Triggered 1 | . 1 . . . Indirectly . | . . . . . Trap Hack Attempts . | . . . . . Triggered . | . . . . . Disarmed . | . . . . . Reprogrammed . | . . . . . Reused . | . . . . . Traps Extracted . | . . . . . Installed . | . . . . . Triggered . | . . . . . Machines | -11 -10 -10 -10 -9 ---------- Run | Yrd Mat Min Exi Min Machines Disabled . | . . . . . Max in Single Turn . | . . . . . Machines Repaired . | . . . . . Machines Dismantled . | . . . . . Machines Sabotaged . | . . . . . Overloaded Fab Kills . | . . . . . Hacking | -11 -10 -10 -10 -9 --------- Run | Yrd Mat Min Exi Min Machines Accessed 4 | . 3 . . 1 Terminals 4 | . 3 . . 1 Fabricators . | . . . . . Repair Stations . | . . . . . Recycling Units . | . . . . . Scanalyzers . | . . . . . Garrison Access . | . . . . . Total Hacks 12 | . 7 . . 5 Successful 2 | . 2 . . . Failed 9 | . 4 . . 5 Catastrophic 1 | . . . . 1 Database Lockouts 1 | . 1 . . . Manual 10 | . 4 . 1 5 Terminals 12 | . 7 . . 5 Fabricators . | . . . . . Repair Stations . | . . . . . Recycling Units . | . . . . . Scanalyzers . | . . . . . Garrison Access . | . . . . . Terminal Hacks 1 | . 1 . . . Prototype ID Bank 1 | . 1 . . . Fabricator Hacks . | . . . . . Repair Station Hacks . | . . . . . Recycling Unit Hacks . | . . . . . Scanalyzer . | . . . . . Garrison Access Hacks . | . . . . . Unauthorized Hacks 1 | . 1 . . . Terminals 1 | . 1 . . . Operators 1 | . 1 . . . Fabricators . | . . . . . Repair Stations . | . . . . . Recycling Units . | . . . . . Scanalyzers . | . . . . . Garrison Access . | . . . . . Data Cores Recovered . | . . . . . Used . | . . . . . Hacking Detections 2 | . 1 . . 1 Full Trace Events . | . . . . . Feedback Events . | . . . . . Feedback Blocked . | . . . . . Robot Schematics Acquired . | . . . . . Robots Built . | . . . . . Authchips . | . . . . . Time . | . . . . . Total Robot Build Rating . | . . . . . Part Schematics Acquired . | . . . . . Parts Built . | . . . . . Authchips . | . . . . . Time . | . . . . . Total Part Build Rating . | . . . . . Parts Repaired . | . . . . . Time . | . . . . . Parts Recycled . | . . . . . Recycled Matter . | . . . . . Retrieved Matter . | . . . . . Retrieved Components . | . . . . . Parts Scanalyzed . | . . . . . Part Schematics Acquired . | . . . . . Parts Damaged . | . . . . . Bothacking | -11 -10 -10 -10 -9 ------------ Run | Yrd Mat Min Exi Min Used RIF Installer . | . . . . . Robots Hacked . | . . . . . Non-combat . | . . . . . Combat . | . . . . . Robot Hacks Applied . | . . . . . Relay Couplers Released . | . . . . . Fabnet Peak Effective % . | . . . . . Robots Rewired . | . . . . . Allies Hacked . | . . . . . Hacks Repelled . | . . . . . Allies | -11 -10 -10 -10 -9 -------- Run | Yrd Mat Min Exi Min Total Allies . | . . . . . Largest Group . | . . . . . Highest-Rated Group . | . . . . . Highest-Rated Ally . | . . . . . Total Orders . | . . . . . Ally Attacks . | . . . . . Total Damage . | . . . . . Kills . | . . . . . Allies Corrupted . | . . . . . Allies Melted . | . . . . . Intel | -11 -10 -10 -10 -9 ------- Run | Yrd Mat Min Exi Min Robot Analysis Total . | . . . . . Derelict Logs Recovered 1 | . . . . 1 Drone Launches . | . . . . . Drone Recoveries . | . . . . . Exploration | -11 -10 -10 -10 -9 ------------- Run | Yrd Mat Min Exi Min Turns Passed 3146 | 115 780 206 394 1651 Spaces Moved 946 | 59 347 101 261 178 Core 16 | 3 . . 13 . Treads 631 | 56 347 101 127 . Legs 299 | . . . 121 178 Wheels . | . . . . . Hover . | . . . . . Flight . | . . . . . Fastest Speed 50 | 50 160 160 90 120 Average Speed 148 | 154 160 160 145 120 Slowest Speed 250 | 160 160 160 250 120 Overloaded Moves . | . . . . . Propulsion Burnouts . | . . . . . Robots Hopped . | . . . . . Cave-ins Triggered . | . . . . . Exploration Rate (%) 35 | 5 55 25 62 29 Regions Visited 4 Branch Regions 3 Pre-discovered Areas 1 | . . . . 1 Known Exits Taken . | . . . . . Unknown Exits Taken 4 | 1 1 1 1 . Scrap Searched 3 | . . 1 . 2 Spaces Dug . | . . . . . Terrain Destroyed . | . . . . . Melee . | . . . . . Projectile . | . . . . . AOE . | . . . . . Terrain Rammed . | . . . . . Walls Destroyed . | . . . . . Machines Disabled . | . . . . . Actions | -11 -10 -10 -10 -9 --------- Run | Yrd Mat Min Exi Min Total 2545 | 83 458 118 277 1609 Wait 1465 | 10 29 3 . 1423 Move 942 | 58 346 100 260 178 Hop . | . . . . . Pick Up 26 | 9 9 1 6 1 Fast Attach . | . . . . . Attach 13 | 6 4 . 2 1 Detach . | . . . . . Swap 3 | . . . 3 . Drop 10 | . 4 . 6 . Fire 81 | . 63 14 . 4 Melee . | . . . . . Ram . | . . . . . Kick 2 | . . . . 2 Crush 3 | . 3 . . . Escape Stasis . | . . . . . Rewire . | . . . . . Trap . | . . . . . Miscellaneous . | . . . . . Route ------- -11/Scrapyard -10/Materials (discovered 2 exits: [*Mat] / [*Min]) -10/Mines (discovered 2 exits: [*Mat] / *Exi) -10/Exiles -9/Mines History --------- Turn | Location | Event 7 | -11/Scrapyard | Discovered new exit (range 15) 116 | -11/Scrapyard | Entered Materials 225 | -10/Materials | Discovered new exit (range 9) 307 | -10/Materials | Build established: Mutant 576 | -10/Materials | Discovered new exit (range 12) 779 | -10/Materials | Central database locked down 816 | -10/Materials | Derelicts attacked the area 896 | -10/Materials | Entered Mines 903 | -10/Mines | Core integrity fell below 50% 1062 | -10/Mines | Found a hidden stash of uninstalled traps 1080 | -10/Mines | Discovered new exit (range 13) 1096 | -10/Mines | Deemed a non-threat by the Exiles lab entrance 1096 | -10/Mines | Discovered new exit (range 5) 1102 | -10/Mines | Entered Exiles 1142 | -10/Exiles | Met 8R-AWN 1168 | -10/Exiles | Met EX-HEX 1234 | -10/Exiles | Met EX-BIN 1254 | -10/Exiles | Aligned with FarCom system 1256 | -10/Exiles | Given EX-Vault access code 1298 | -10/Exiles | Opened EX-Vault 1307 | -10/Exiles | Found Prototype Leg 1308 | -10/Exiles | Identified Potential Leg 1345 | -10/Exiles | Found Potential Leg 1379 | -10/Exiles | Warned to stay clear of 0b10 Research branches 1420 | -10/Exiles | Met EX-DEC 1487 | -10/Exiles | Discovered new exit (range 10) 1496 | -10/Exiles | Left Exiles lab with Potential Leg 1496 | -10/Exiles | Entered Mines 1526 | -9/Mines | Learned location of Storage (-7) 1591 | -9/Mines | Assembled infested the area 3139 | -9/Mines | Core integrity fell below 20% 3147 | -9/Mines | Destroyed by YI-UF0 with YI-UF0's Doublenader Last Messages --------------- 01526_ Acquired derelict log, extracted data. World map updated: -7/Storage. 01545_ Searching scrap... 01545_ Found 25 Matter. 01545_ Found Wheel. 01545_ Found Beam Cannon. 01545_ Found 22 Matter. 01574_ T-07 Excavator destroyed. 01586_ K-01 Serf collects debris. 01591_ ALERT: Infestation in the mines, dispatching Demolisher response squad. 01591_ Kicked K-01 Serf. 01599_ Kicked T-07 Excavator out of the way. 01613_ U-05 Engineer lays Concrete. 02934_ U-05 Engineer destroyed. 03059_ The unstable cave ceiling collapses. 03111_ Connecting with Terminal... 03111_ Current location identified: Mines 03123_ YI-UF0 mumbles something. 03145_ Assault Rifle destroyed. Map ----- +----------------------------------------------------+ | ?????????????????????????????????????? | | ?????????????????????????????????????? | | ?????????????????????????????????????? | | ?????????????????????????????????????? | | ?????????????????????????????????????? | | ?????????????????????######??????????? | | ????????????????????## ##?????????? | | ????????????????????# ##????????? | | ????????????????????# #????????? | | ???????????????????## = %#????????? | | ??????????????????## ]%#?????????? | | ???????????????#### #####?????????? | | ??????????????## ##?????????????? | | ???????###????# #???????###?##?? | | ????#### ##??# ##??###### #? ?? | | ???## #??# ##??## ## ? ## | | ???# #??# #??# ## # | | ???# #??## #### # | | ????# #???## ## # # | | ?????# #?????# | | ?????# ####### # ## | | ?????# ## ## ### # | | ??????# #! #=! | | ??????# *% #% | | ???????# ## =# | | ???????# @ # = ##### | | ???????# # = #???? | | ???????# # ##??? | | ???????# g #??? | | ???????## ###??? | | ????????## #????? | | ??????### # #????? | | ??????# # ##### ## ## #????? | | ?????## # ##???# ###### ####????? | | ?????#T# # %# ##??# #??### [##?????? | | ?????# #??# #?## ! #####?? | | ?????# #??# ### #?? | | ?????# #??# #### #?? | | ?????# #??# ##??????? | | ?????# "#?###### #???????? | | ?????# #??????## ##???????? | | ?????# ##???????####????????? | | ?????###" # #????????????????????? | | ???????### ###????????????????????? | | ?????????? ####??????????????????????? | | ??????????##?????????????????????????? | | ?????????????????????????????????????? | | | | | | | +----------------------------------------------------+ Best States ------------- Heat Dissipation 39 Energy Generation 10 Energy Capacity 250 Matter Stores 300 Matter Capacity 300 Sight Range 16 Terrain Scan Density 10 Evasion (%) 55 Recoil Reduction 2 Item Schematics ----------------- None Robot Schematics ------------------ None Fabricated ------------ Nothing Alien Tech Used ----------------- None Achievements -------------- None Challenges ------------ None Game ------ Seed GreatFortressBeamcaster Manual? 0 Play Time 00:15:36 Cumulative 77.8 hours Start 2024.04.17 @ 16:15:45 End 2024.04.17 @ 16:27:12 Sessions 1 Manual Loads 0 Difficulty Rogue Special Mode None Game No. 72 Rogue 72 Adventurer 0 Explorer 0 Win Type - Total 0 Types 0/0/0/0/0/0/0/0/0 Lore% 41 Gallery% 52 Achievement% 32 Wizard Run 0 Options --------- Layout 1 ASCII 0 Keyboard 0 Movement Numpad Keybinds 0 Fullscreen 1 Font 24/Smallcaps Map View 50x35 Zoom Use 0% Tactical HUD 1 Map Filters NONE Filters NONE Steam 1 RUN: 58603a21-21d9-4887-866b-837610caa79a